fUSD/lending_fUSD_20260528
["ID","MTS","AMOUNT","RATE_DAILY","PERIOD"]
[423224933,1779951043000,-500.0,0.00013699,2]
[423224935,1779951043000,-500.0,0.00013699,2]
[423224934,1779951043000,-500.0,0.00013699,2]
[423224936,1779951043000,-500.0,0.00013699,2]
[423224938,1779951043000,-150.0,0.00013702,2]
[423224937,1779951043000,-500.0,0.00013699,2]
[423224939,1779951043000,-169.45,0.00013706,2]
[423224941,1779951043000,-150.0,0.00013722,2]
[423224943,1779951043000,-150.0,0.00013769,2]
[423224942,1779951043000,-150.0,0.0001376,2]
[423224944,1779951043000,-11290.08177461,0.0001377,2]
[423224946,1779951043000,-151.0,0.0001377,2]
[423224948,1779951043000,-150.0,0.00013821,2]
[423224940,1779951043000,-169.45,0.00013706,2]
[423224959,1779951043000,-150.0,0.00013987,2]
[423224947,1779951043000,-150.0,0.00013815,2]
[423224958,1779951043000,-150.0,0.00013987,2]
[423224957,1779951043000,-166.66,0.00013973,2]
[423224955,1779951043000,-4391.15284001,0.00013944,2]
[423224961,1779951043000,-500.0,0.00013988,2]
[423224949,1779951043000,-166.66,0.00013836,2]
[423224951,1779951043000,-150.0,0.00013862,2]
[423224956,1779951043000,-150.0,0.00013956,2]
[423224953,1779951043000,-150.0,0.00013909,2]
[423224952,1779951043000,-150.0,0.00013896,2]
[423224950,1779951043000,-150.0,0.00013862,2]
[423224945,1779951043000,-151.0,0.0001377,2]
[423224954,1779951043000,-150.0,0.00013916,2]
[423225041,1779951044000,-1544.0,0.00014562,2]
[423225040,1779951044000,-151.0,0.0001456,2]
[423225042,1779951044000,-150.0,0.00014565,2]
[423225043,1779951044000,-150.0,0.00014578,2]
[423225039,1779951044000,-151.0,0.0001456,2]
[423225036,1779951044000,-150.0,0.00014558,2]
[423225038,1779951044000,-151.0,0.0001456,2]
[423225037,1779951044000,-151.0,0.0001456,2]
[423225031,1779951044000,-150.0,0.00014518,2]
[423225035,1779951044000,-1544.0,0.00014549,2]
[423225029,1779951044000,-8800.0,0.000145,5]
[423225044,1779951044000,-500.0,0.00014599,2]
[423225033,1779951044000,-1544.0,0.00014549,2]
[423225045,1779951044000,-500.0,0.00014599,2]
[423225062,1779951044000,-226.61703358,0.00014599,2]
[423225049,1779951044000,-500.0,0.00014599,2]
[423225050,1779951044000,-500.0,0.00014599,2]
[423225047,1779951044000,-500.0,0.00014599,2]
[423225046,1779951044000,-500.0,0.00014599,2]
[423225051,1779951044000,-500.0,0.00014599,2]
[423225052,1779951044000,-500.0,0.00014599,2]
[423225054,1779951044000,-592.45918136,0.00014599,2]
[423225053,1779951044000,-500.0,0.00014599,2]
[423225055,1779951044000,-582.13,0.00014599,2]
[423225056,1779951044000,-582.13,0.00014599,2]
[423225057,1779951044000,-582.13,0.00014599,2]
[423225058,1779951044000,-582.13,0.00014599,2]
[423225027,1779951044000,-2000.0,0.000145,2]
[423225048,1779951044000,-479.18442925,0.00014599,2]
[423225024,1779951044000,-151.0,0.000145,2]
[423224995,1779951044000,-150.0,0.00014305,2]
[423225025,1779951044000,-151.0,0.000145,2]
[423224993,1779951044000,-166.66,0.00014247,2]
[423225064,1779951044000,-500.0,0.00014599,2]
[423224994,1779951044000,-150.0,0.00014284,2]
[423224997,1779951044000,-150.0,0.0001432,2]
[423224998,1779951044000,-150.0,0.00014331,2]
[423224996,1779951044000,-368.50159708,0.00014309,2]
[423225000,1779951044000,-151.0,0.00014344,2]
[423224999,1779951044000,-151.0,0.00014344,2]
[423225002,1779951044000,-151.0,0.00014344,2]
[423225001,1779951044000,-151.0,0.00014344,2]
[423225004,1779951044000,-2000.0,0.0001437,2]
[423225003,1779951044000,-150.0,0.00014344,2]
[423225006,1779951044000,-2000.0,0.0001437,2]
[423225005,1779951044000,-2000.0,0.0001437,2]
[423225022,1779951044000,-9298.36,0.00014497,2]
[423225007,1779951044000,-2000.0,0.0001437,2]
[423225010,1779951044000,-150.0,0.00014377,2]
[423225009,1779951044000,-2000.0,0.0001437,2]
[423225011,1779951044000,-166.66,0.00014384,2]
[423225012,1779951044000,-472.97688628,0.000144,2]
[423225013,1779951044000,-7000.0,0.000144,5]
[423225015,1779951044000,-150.0,0.00014424,2]
[423225014,1779951044000,-4391.15284001,0.00014422,2]
[423225020,1779951044000,-150.0,0.00014487,2]
[423225017,1779951044000,-6946.94637459,0.00014444,2]
[423225016,1779951044000,-150.0,0.00014441,2]
[423225021,1779951044000,-583.84,0.00014497,2]
[423225018,1779951044000,-150.0,0.00014471,2]
[423225019,1779951044000,-150.0,0.00014487,2]
[423225023,1779951044000,-1266.28,0.00014497,2]
[423225008,1779951044000,-2000.0,0.0001437,2]
[423225061,1779951044000,-500.0,0.00014599,2]
[423225069,1779951044000,-1700.0,0.000146,5]
[423225063,1779951044000,-500.0,0.00014599,2]
[423225098,1779951044000,-4709.78916449,0.00014791,2]
[423225102,1779951044000,-1700.0,0.000148,5]
[423225101,1779951044000,-150.0,0.00014799,2]
[423225100,1779951044000,-25000.0,0.00014794,3]
[423225103,1779951044000,-25000.0,0.00014803,3]
[423225099,1779951044000,-11801.64756349,0.00014791,2]
[423225104,1779951044000,-164.48,0.00014806,2]
[423225105,1779951044000,-25000.0,0.00014812,3]
[423225107,1779951044000,-25000.0,0.00014821,3]
[423225106,1779951044000,-150.0,0.0001482,2]
[423225108,1779951044000,-25000.0,0.0001483,3]
[423225117,1779951044000,-25000.0,0.00014847,3]
[423225109,1779951044000,-25000.0,0.00014838,3]
[423225110,1779951044000,-25000.0,0.00014838,3]
[423225112,1779951044000,-11801.64756349,0.00014846,2]
[423225111,1779951044000,-4709.78916448,0.00014846,2]
[423225114,1779951044000,-582.13,0.00014846,2]
[423225113,1779951044000,-150.0,0.00014846,2]
[423225115,1779951044000,-500.0,0.00014846,2]
[423225116,1779951044000,-25000.0,0.00014847,3]
[423225119,1779951044000,-567.76,0.00014855,2]
[423225060,1779951044000,-582.13,0.00014599,2]
[423225120,1779951044000,-679.56,0.00014855,2]
[423225121,1779951044000,-25000.0,0.00014856,3]
[423225122,1779951044000,-25000.0,0.00014856,3]
[423225124,1779951044000,-25000.0,0.00014865,3]
[423225123,1779951044000,-25000.0,0.00014865,3]
[423225125,1779951044000,-500.0,0.00014873,2]
[423225126,1779951044000,-500.0,0.00014873,2]
[423225096,1779951044000,-641.40091277,0.00014784,2]
[423225097,1779951044000,-25000.0,0.00014786,3]
[423225118,1779951044000,-150.0,0.0001485,2]
[423225094,1779951044000,-151.0,0.00014777,2]
[423225095,1779951044000,-350.0,0.00014782,2]
[423225059,1779951044000,-582.13,0.00014599,2]
[423225066,1779951044000,-500.0,0.00014599,2]
[423225065,1779951044000,-500.0,0.00014599,2]
[423225068,1779951044000,-500.0,0.00014599,2]
[423225071,1779951044000,-150.0,0.00014612,2]
[423225070,1779951044000,-150.0,0.00014612,2]
[423225073,1779951044000,-150.0,0.00014658,2]
[423225072,1779951044000,-150.0,0.00014653,2]
[423225074,1779951044000,-641.40091278,0.00014667,2]
[423225075,1779951044000,-4486.0,0.00014668,5]
[423225076,1779951044000,-178.68,0.00014681,2]
[423225078,1779951044000,-150.0,0.00014705,2]
[423225077,1779951044000,-1700.0,0.000147,5]
[423225067,1779951044000,-500.0,0.00014599,2]
[423225080,1779951044000,-25000.0,0.0001475,3]
[423225079,1779951044000,-150.0,0.00014714,2]
[423225091,1779951044000,-277.1267596,0.00014776,2]
[423225093,1779951044000,-151.0,0.00014777,2]
[423225088,1779951044000,-150.0,0.00014772,2]
[423225089,1779951044000,-15005.8161656,0.00014774,2]
[423225084,1779951044000,-500.0,0.00014767,2]
[423225092,1779951044000,-25000.0,0.00014777,3]
[423225090,1779951044000,-759.2276912,0.00014776,2]
[423225086,1779951044000,-679.56,0.00014767,2]
[423225085,1779951044000,-567.76,0.00014767,2]
[423225082,1779951044000,-25000.0,0.00014759,3]
[423225083,1779951044000,-582.13,0.00014767,2]
[423225087,1779951044000,-25000.0,0.00014768,3]
[423225081,1779951044000,-150.0,0.00014752,2]
[423225161,1779951045000,-1700.0,0.000149,5]
[423225160,1779951045000,-6946.94637459,0.000149,2]
[423225159,1779951045000,-4391.15284001,0.000149,2]
[423225157,1779951045000,-420.27153333,0.000149,2]
[423225156,1779951045000,-25000.0,0.000149,3]
[423225155,1779951045000,-10000.0,0.000149,2]
[423225151,1779951045000,-500.0,0.00014899,2]
[423225152,1779951045000,-21997.0328103,0.000149,3]
[423225158,1779951045000,-478.98583491,0.000149,2]
[423225162,1779951045000,-25000.0,0.000149,3]
[423225168,1779951045000,-475.57,0.00014907,2]
[423225165,1779951045000,-11801.64756349,0.000149,2]
[423225166,1779951045000,-641.40091277,0.000149,2]
[423225169,1779951045000,-478.43,0.00014907,2]
[423225164,1779951045000,-4709.78916448,0.000149,2]
[423225167,1779951045000,-478.43,0.00014901,2]
[423225171,1779951045000,-475.57,0.00014925,2]
[423225170,1779951045000,-291.23900909,0.00014908,2]
[423225172,1779951045000,-478.44,0.00014932,2]
[423225175,1779951045000,-162.87,0.0001495,2]
[423225154,1779951045000,-3555.38374967,0.000149,3]
[423225163,1779951045000,-786.02149768,0.000149,2]
[423225153,1779951045000,-25000.0,0.000149,3]
[423225136,1779951045000,-271.60702547,0.0001489,2]
[423225148,1779951045000,-510.00564185,0.00014899,2]
[423225131,1779951045000,-151.0,0.00014882,2]
[423225130,1779951045000,-151.0,0.00014882,2]
[423225127,1779951045000,-25000.0,0.00014874,3]
[423225129,1779951045000,-151.0,0.00014882,2]
[423225128,1779951045000,-25000.0,0.00014874,3]
[423225134,1779951045000,-25000.0,0.00014882,3]
[423225135,1779951045000,-25000.0,0.00014882,3]
[423225132,1779951045000,-151.0,0.00014882,2]
[423225133,1779951045000,-25000.0,0.00014882,3]
[423225141,1779951045000,-582.13,0.00014899,2]
[423225142,1779951045000,-582.13,0.00014899,2]
[423225176,1779951045000,-166.4,0.00014951,2]
[423225137,1779951045000,-25000.0,0.00014891,3]
[423225139,1779951045000,-25000.0,0.00014891,3]
[423225143,1779951045000,-582.13,0.00014899,2]
[423225138,1779951045000,-25000.0,0.00014891,3]
[423225140,1779951045000,-150.0,0.00014893,2]
[423225145,1779951045000,-582.16810453,0.00014899,2]
[423225147,1779951045000,-500.0,0.00014899,2]
[423225149,1779951045000,-567.76,0.00014899,2]
[423225146,1779951045000,-500.0,0.00014899,2]
[423225150,1779951045000,-679.56,0.00014899,2]
[423225174,1779951045000,-150.0,0.00014939,2]
[423225144,1779951045000,-582.13,0.00014899,2]
[423225177,1779951045000,-499.0,0.00014959,2]
[423225204,1779951045000,-679.56,0.00014999,2]
[423225208,1779951045000,-679.56,0.00014999,2]
[423225202,1779951045000,-567.81494411,0.00014999,2]
[423225203,1779951045000,-679.56,0.00014999,2]
[423225206,1779951045000,-679.56,0.00014999,2]
[423225205,1779951045000,-679.56,0.00014999,2]
[423225212,1779951045000,-679.56,0.00014999,2]
[423225211,1779951045000,-679.56,0.00014999,2]
[423225210,1779951045000,-679.56,0.00014999,2]
[423225213,1779951045000,-679.56,0.00014999,2]
[423225209,1779951045000,-679.56,0.00014999,2]
[423225214,1779951045000,-679.69918433,0.00014999,2]
[423225215,1779951045000,-500.0,0.00014999,2]
[423225223,1779951045000,-428.3647939,0.00015,2]
[423225222,1779951045000,-3122009.2835986,0.00015,2]
[423225221,1779951045000,-8091.36035297,0.00015,2]
[423225220,1779951045000,-332.1,0.00015,2]
[423225218,1779951045000,-2078.68861048,0.00015,2]
[423225224,1779951045000,-4076173.5687999,0.00015,2]
[423225225,1779951045000,-1444501.2486232,0.00015,2]
[423225226,1779951045000,-459.86242947,0.00015,2]
[423225173,1779951045000,-478.44,0.00014932,2]
[423225216,1779951045000,-500.0,0.00014999,2]
[423225207,1779951045000,-679.56,0.00014999,2]
[423225217,1779951045000,-3853202.89982842,0.00015,2]
[423225201,1779951045000,-567.76,0.00014999,2]
[423225200,1779951045000,-567.76,0.00014999,2]
[423225180,1779951045000,-151.20586673,0.00014986,2]
[423225178,1779951045000,-162.12,0.00014986,2]
[423225182,1779951045000,-150.0,0.00014986,2]
[423225179,1779951045000,-150.0,0.00014986,2]
[423225184,1779951045000,-293.68053698,0.00014986,2]
[423225181,1779951045000,-150.67938172,0.00014986,2]
[423225185,1779951045000,-176.92191257,0.00014986,2]
[423225186,1779951045000,-150.0,0.00014986,2]
[423225188,1779951045000,-271.60702547,0.0001499,2]
[423225187,1779951045000,-296.36022384,0.00014986,2]
[423225183,1779951045000,-153.62961216,0.00014986,2]
[423225195,1779951045000,-567.76,0.00014999,2]
[423225189,1779951045000,-500.0,0.00014999,2]
[423225193,1779951045000,-567.76,0.00014999,2]
[423225192,1779951045000,-567.76,0.00014999,2]
[423225194,1779951045000,-567.76,0.00014999,2]
[423225190,1779951045000,-336.14704349,0.00014999,2]
[423225197,1779951045000,-567.76,0.00014999,2]
[423225196,1779951045000,-567.76,0.00014999,2]
[423225198,1779951045000,-567.76,0.00014999,2]
[423225191,1779951045000,-567.76,0.00014999,2]
[423225199,1779951045000,-567.76,0.00014999,2]
[423225236,1779951046000,-500.0,0.00014999,2]
[423225237,1779951046000,-218.27,0.00014999,2]
[423225234,1779951046000,-611.74292638,0.00015,2]
[423225235,1779951046000,-6355.54071909,0.00015,2]
[423225233,1779951046000,-1554.49188622,0.00015,2]
[423225228,1779951046000,-2151.0,0.00015,2]
[423225230,1779951046000,-500.0,0.00014999,2]
[423225232,1779951046000,-1941.12132484,0.00015,2]
[423225227,1779951046000,-5422.08123525,0.00015,2]
[423225229,1779951046000,-24452.54532216,0.00015,2]
[423225241,1779951046000,-10590.0983692,0.00015,2]
[423225231,1779951046000,-1039.0,0.00015,2]
[423225238,1779951046000,-9.84,0.00015,2]
[423225247,1779951046000,-353.13990826,0.00015,2]
[423225240,1779951046000,-697370.83236777,0.00015,2]
[423225242,1779951046000,-395.25999999,0.00012422,2]
[423225243,1779951046000,-728.83,0.00012422,2]
[423225245,1779951046000,-95.67526374,0.00012422,2]
[423225244,1779951046000,-252.26499995,0.00012422,2]
[423225248,1779951046000,-527.50353436,0.00015,2]
[423225246,1779951046000,-1009.8557,0.00013598,2]
[423225250,1779951046000,-3126.91812669,0.00015,2]
[423225249,1779951046000,-388.64047566,0.00015,2]
[423225252,1779951046000,-600.0,0.00015,2]
[423225251,1779951046000,-5854.87910305,0.00015,2]
[423225253,1779951046000,-728.0,0.00013042,2]
[423225254,1779951046000,-517.0,0.00013042,2]
[423225239,1779951046000,-395.16,0.00015,2]
[423225271,1779951094000,650.0,0.00028082,120]
[423225272,1779951530000,611.74292638,0.00012227,2]
[423225273,1779951553000,-145.95398462,0.00012227,2]
[423225274,1779951573000,2676.0,0.00028082,120]
[423225275,1779951606000,-395.8204208,0.00012289,2]
[423225276,1779951607000,1607.0,0.00028082,120]
[423225278,1779951633000,177.8,7.753e-05,2]
[423225277,1779951633000,177.8,6.203e-05,2]
[423225279,1779951660000,-177.8,9.304e-05,2]
[423225281,1779951713000,-160.4,9.949e-05,2]
[423225282,1779951766000,-177.8,0.00010854,2]
[423225283,1779951926000,-192.27219047,0.00010944,2]
[423225285,1779951952000,-150.0,0.00011109,2]
[423225284,1779951952000,-75.73284848,0.00010944,2]
[423225287,1779951952000,-150.0,0.00011329,2]
[423225288,1779951952000,-150.0,0.00011439,2]
[423225289,1779951952000,-18.45722958,0.00011549,2]
[423225286,1779951952000,-150.0,0.00011219,2]
[423225290,1779951979000,-219.54277042,0.00011549,2]
[423225294,1779952032000,-98.40148393,0.00012191,2]
[423225293,1779952032000,-250.0,0.00012038,2]
[423225292,1779952032000,-506.76140362,0.00012038,2]
[423225291,1779952032000,-250.0,0.00012038,2]
[423225295,1779952140000,1000.0,0.00028081,120]
[423225423,1779952231000,-300.0,0.0001219,2]
[423225416,1779952231000,-150.0,0.00011513,2]
[423225417,1779952231000,-200.0,0.00011556,2]
[423225414,1779952231000,-372.66800724,0.00011391,2]
[423225415,1779952231000,-304.91018774,0.00011391,2]
[423225419,1779952231000,-229.0,0.00011741,2]
[423225418,1779952231000,-150.0,0.00011627,2]
[423225424,1779952231000,-1200.0,0.0001219,2]
[423225420,1779952231000,-151.86926918,0.0001184,2]
[423225422,1779952231000,-1200.0,0.0001219,2]
[423225425,1779952231000,-300.0,0.0001219,2]
[423225426,1779952231000,-2650.60609383,0.00012211,2]
[423225427,1779952231000,-482.03836065,0.00012227,2]
[423225431,1779952231000,-213.92,0.00012288,2]
[423225429,1779952231000,-4511.0,0.00012258,2]
[423225432,1779952231000,-170.7,0.00012293,2]
[423225428,1779952231000,-6733.67,0.00012238,2]
[423225430,1779952231000,-1494.03,0.00012267,2]
[423225434,1779952231000,-500.0,0.00012319,2]
[423225433,1779952231000,-198.09,0.00012306,2]
[423225421,1779952231000,-399.5608414,0.0001184,2]
[423225474,1779952232000,-150.0,0.00013425,2]
[423225478,1779952232000,-500.0,0.00013425,2]
[423225477,1779952232000,-500.0,0.00013425,2]
[423225485,1779952232000,-500.0,0.00013425,2]
[423225475,1779952232000,-150.0,0.00013425,2]
[423225492,1779952232000,-500.0,0.00013425,2]
[423225471,1779952232000,-177.0,0.00013379,2]
[423225470,1779952232000,-392.0,0.00013379,2]
[423225469,1779952232000,-508.81616211,0.00013341,2]
[423225472,1779952232000,-1680.0,0.00013409,2]
[423225462,1779952232000,-500.0,0.00012793,2]
[423225473,1779952232000,-1297.67,0.00013417,2]
[423225480,1779952232000,-500.0,0.00013425,2]
[423225493,1779952232000,-500.0,0.00013425,2]
[423225476,1779952232000,-245.24118621,0.00013425,2]
[423225482,1779952232000,-500.0,0.00013425,2]
[423225483,1779952232000,-500.0,0.00013425,2]
[423225484,1779952232000,-500.0,0.00013425,2]
[423225479,1779952232000,-500.0,0.00013425,2]
[423225486,1779952232000,-247.48052146,0.00013425,2]
[423225488,1779952232000,-500.0,0.00013425,2]
[423225490,1779952232000,-500.0,0.00013425,2]
[423225489,1779952232000,-500.0,0.00013425,2]
[423225497,1779952232000,-537.1808123,0.00013425,2]
[423225498,1779952232000,-150.0,0.00013425,2]
[423225487,1779952232000,-500.0,0.00013425,2]
[423225491,1779952232000,-500.0,0.00013425,2]
[423225467,1779952232000,-150.89,0.00013182,2]
[423225481,1779952232000,-500.0,0.00013425,2]
[423225464,1779952232000,-500.0,0.00013067,2]
[423225460,1779952232000,-667.32,0.00012742,2]
[423225466,1779952232000,-152.0,0.00013126,7]
[423225436,1779952232000,-500.0,0.00012319,2]
[423225435,1779952232000,-497.9713957,0.00012319,2]
[423225437,1779952232000,-500.0,0.0001232,2]
[423225438,1779952232000,-2000.0,0.00012324,2]
[423225448,1779952232000,-1297.67,0.00012481,2]
[423225444,1779952232000,-2156.58,0.00012435,2]
[423225443,1779952232000,-2771.24,0.00012423,2]
[423225441,1779952232000,-500.0,0.0001236,3]
[423225440,1779952232000,-8872.0,0.00012353,2]
[423225446,1779952232000,-12930.96,0.00012437,2]
[423225439,1779952232000,-500.0,0.00012324,2]
[423225442,1779952232000,-177.8,0.00012405,2]
[423225445,1779952232000,-150.0,0.00012436,2]
[423225447,1779952232000,-294.73,0.00012477,2]
[423225449,1779952232000,-150.0,0.00012504,2]
[423225451,1779952232000,-1024.22,0.00012518,2]
[423225456,1779952232000,-444.94,0.0001264,2]
[423225453,1779952232000,-4259.21778715,0.00012554,2]
[423225454,1779952232000,-407.0321,0.00012589,2]
[423225452,1779952232000,-2701.78,0.00012547,2]
[423225450,1779952232000,-859.0,0.00012504,2]
[423225455,1779952232000,-162.87,0.00012632,2]
[423225457,1779952232000,-172.17,0.00012688,2]
[423225458,1779952232000,-250.0,0.00012704,2]
[423225459,1779952232000,-160.0,0.00012712,2]
[423225461,1779952232000,-221.27,0.00012742,2]
[423225463,1779952232000,-1297.67,0.00012793,2]
[423225468,1779952232000,-157.4,0.00013211,2]
[423225494,1779952232000,-500.0,0.00013425,2]
[423225465,1779952232000,-1297.67,0.00013105,2]
[423225496,1779952232000,-500.0,0.00013425,2]
[423225526,1779952232000,-500.0,0.00013698,2]
[423225527,1779952232000,-398.26046862,0.00013698,2]
[423225532,1779952232000,-500.0,0.00013698,2]
[423225530,1779952232000,-500.0,0.00013698,2]
[423225528,1779952232000,-500.0,0.00013698,2]
[423225531,1779952232000,-500.0,0.00013698,2]
[423225537,1779952232000,-500.0,0.00013698,2]
[423225539,1779952232000,-500.0,0.00013698,2]
[423225540,1779952232000,-500.0,0.00013698,2]
[423225538,1779952232000,-500.0,0.00013698,2]
[423225548,1779952232000,-505.468191,0.00013698,2]
[423225541,1779952232000,-500.0,0.00013698,2]
[423225546,1779952232000,-500.0,0.00013698,2]
[423225536,1779952232000,-500.0,0.00013698,2]
[423225544,1779952232000,-500.0,0.00013698,2]
[423225542,1779952232000,-500.0,0.00013698,2]
[423225545,1779952232000,-500.0,0.00013698,2]
[423225543,1779952232000,-500.0,0.00013698,2]
[423225550,1779952232000,-535.38,0.00013698,2]
[423225549,1779952232000,-500.71247553,0.00013698,2]
[423225551,1779952232000,-535.38,0.00013698,2]
[423225553,1779952232000,-535.38,0.00013698,2]
[423225552,1779952232000,-535.38,0.00013698,2]
[423225554,1779952232000,-500.0,0.00013698,2]
[423225555,1779952232000,-535.38,0.00013698,2]
[423225557,1779952232000,-535.38,0.00013698,2]
[423225556,1779952232000,-500.0,0.00013698,2]
[423225495,1779952232000,-500.0,0.00013425,2]
[423225547,1779952232000,-500.0,0.00013698,2]
[423225534,1779952232000,-500.0,0.00013698,2]
[423225558,1779952232000,-500.0,0.00013698,2]
[423225529,1779952232000,-500.0,0.00013698,2]
[423225535,1779952232000,-500.0,0.00013698,2]
[423225504,1779952232000,-577.41851285,0.00013425,2]
[423225508,1779952232000,-150.0,0.00013488,2]
[423225499,1779952232000,-500.0,0.00013425,2]
[423225500,1779952232000,-500.0,0.00013425,2]
[423225510,1779952232000,-150.0,0.00013488,2]
[423225501,1779952232000,-500.0,0.00013425,2]
[423225502,1779952232000,-500.0,0.00013425,2]
[423225503,1779952232000,-500.0,0.00013425,2]
[423225507,1779952232000,-150.0,0.00013488,2]
[423225509,1779952232000,-150.67938172,0.00013488,2]
[423225506,1779952232000,-150.0,0.00013488,2]
[423225512,1779952232000,-150.0,0.00013488,2]
[423225511,1779952232000,-150.0,0.00013488,2]
[423225505,1779952232000,-150.0,0.00013488,2]
[423225515,1779952232000,-150.0,0.00013595,2]
[423225513,1779952232000,-150.0,0.00013488,2]
[423225525,1779952232000,-500.0,0.00013698,2]
[423225523,1779952232000,-5117.30296317,0.00013697,2]
[423225520,1779952232000,-150.0,0.00013613,2]
[423225517,1779952232000,-3773.4138,0.00013598,2]
[423225524,1779952232000,-500.0,0.00013698,2]
[423225522,1779952232000,-162.87,0.00013674,2]
[423225516,1779952232000,-7328.72547914,0.00013598,2]
[423225514,1779952232000,-255.0,0.0001353,2]
[423225518,1779952232000,-583.84,0.00013608,2]
[423225533,1779952232000,-500.0,0.00013698,2]
[423225519,1779952232000,-9298.36,0.00013608,2]
[423225521,1779952232000,-200.0,0.00013618,2]
[423225600,1779952233000,-166.66,0.00013699,2]
[423225590,1779952233000,-591.79,0.00013698,2]
[423225587,1779952233000,-500.0,0.00013698,2]
[423225592,1779952233000,-591.79,0.00013698,2]
[423225591,1779952233000,-591.79,0.00013698,2]
[423225594,1779952233000,-591.79,0.00013698,2]
[423225596,1779952233000,-591.79,0.00013698,2]
[423225597,1779952233000,-591.79,0.00013698,2]
[423225601,1779952233000,-200.0,0.00013699,2]
[423225593,1779952233000,-591.79,0.00013698,2]
[423225588,1779952233000,-500.0,0.00013698,2]
[423225602,1779952233000,-500.0,0.00013699,2]
[423225595,1779952233000,-591.79,0.00013698,2]
[423225604,1779952233000,-200.0,0.000137,5]
[423225598,1779952233000,-500.0,0.00013698,2]
[423225603,1779952233000,-342.3778977,0.00013699,2]
[423225599,1779952233000,-500.0,0.00013698,2]
[423225607,1779952233000,-150.0,0.00013737,2]
[423225613,1779952233000,-150.0,0.00013862,2]
[423225610,1779952233000,-400.0,0.000138,5]
[423225612,1779952233000,-166.66,0.00013836,2]
[423225615,1779952233000,-388.18185564,0.00013863,2]
[423225589,1779952233000,-591.79,0.00013698,2]
[423225608,1779952233000,-150.0,0.00013737,2]
[423225605,1779952233000,-150.0,0.00013702,2]
[423225584,1779952233000,-500.0,0.00013698,2]
[423225571,1779952233000,-500.0,0.00013698,2]
[423225585,1779952233000,-500.0,0.00013698,2]
[423225616,1779952233000,-2000.0,0.00013864,2]
[423225561,1779952233000,-500.0,0.00013698,2]
[423225560,1779952233000,-500.0,0.00013698,2]
[423225559,1779952233000,-535.38,0.00013698,2]
[423225573,1779952233000,-500.0,0.00013698,2]
[423225574,1779952233000,-500.0,0.00013698,2]
[423225563,1779952233000,-500.0,0.00013698,2]
[423225562,1779952233000,-500.0,0.00013698,2]
[423225564,1779952233000,-525.71063525,0.00013698,2]
[423225565,1779952233000,-500.0,0.00013698,2]
[423225567,1779952233000,-500.0,0.00013698,2]
[423225568,1779952233000,-500.0,0.00013698,2]
[423225569,1779952233000,-500.0,0.00013698,2]
[423225570,1779952233000,-500.0,0.00013698,2]
[423225566,1779952233000,-500.0,0.00013698,2]
[423225572,1779952233000,-500.0,0.00013698,2]
[423225576,1779952233000,-500.0,0.00013698,2]
[423225575,1779952233000,-500.0,0.00013698,2]
[423225577,1779952233000,-500.0,0.00013698,2]